[Event "January 2 Early 2024"]
[Site "https://www.chess.com"]
[Date "2024.01.02"]
[Round "8"]
[White "Zavgorodniy, Sergiy"]
[Black "Kosteniuk, Alexandra"]
[Result "1-0"]
[Board "50"]
[TimeControl "180+1"]
[WhiteFideId "14110148"]
[BlackFideId "4128125"]
[WhiteElo "2629"]
[BlackElo "2760"]
[WhiteTeam "UKR"]
[BlackTeam "SUI"]
[WhiteClock "0:00:28"]
[BlackClock "0:00:03"]

1. e4 {[%clk 0:03:00]}  c6 {[%clk 0:03:00]} 2. d4 {[%clk 0:02:59]}  d5 {[%clk 0:03:01]} 3. exd5 {[%clk 0:02:59]}  cxd5 {[%clk 0:03:01]} 4. c4 {[%clk 0:02:58]}  Nf6 {[%clk 0:03:01]} 5. Nc3 {[%clk 0:02:59]}  Nc6 {[%clk 0:03:01]} 6. Nf3 {[%clk 0:02:59]}  a6 {[%clk 0:03:01]} 7. cxd5 {[%clk 0:02:56]}  Nxd5 {[%clk 0:03:01]} 8. Bd3 {[%clk 0:02:56]}  g6 {[%clk 0:03:00]} 9. O-O {[%clk 0:02:54]}  Bg7 {[%clk 0:03:01]} 10. Be4 {[%clk 0:02:46]}  Nc7 {[%clk 0:02:46]} 11. d5 {[%clk 0:02:36]}  Ne5 {[%clk 0:02:34]} 12. Nxe5 {[%clk 0:02:34]}  Bxe5 {[%clk 0:02:35]} 13. Bh6 {[%clk 0:02:34]}  Bf5 {[%clk 0:02:34]} 14. Bxf5 {[%clk 0:02:30]}  gxf5 {[%clk 0:02:35]} 15. Re1 {[%clk 0:02:30]}  Qd6 {[%clk 0:02:34]} 16. Qh5 {[%clk 0:02:13]}  Rg8 {[%clk 0:02:19]} 17. g3 {[%clk 0:01:44]}  Bxc3 {[%clk 0:01:19]} 18. bxc3 {[%clk 0:01:45]}  f4 {[%clk 0:00:47]} 19. c4 {[%clk 0:01:36]}  fxg3 {[%clk 0:00:46]} 20. hxg3 {[%clk 0:01:35]}  O-O-O {[%clk 0:00:41]} 21. Rab1 {[%clk 0:01:24]}  e6 {[%clk 0:00:27]} 22. Qf3 {[%clk 0:01:15]}  exd5 {[%clk 0:00:26]} 23. Bf4 {[%clk 0:01:15]}  Qc6 {[%clk 0:00:15]} 24. cxd5 {[%clk 0:01:12]}  Qxd5 {[%clk 0:00:15]} 25. Qc3 {[%clk 0:00:59]}  Rd7 {[%clk 0:00:15]} 26. Rec1 {[%clk 0:00:57]}  Rg6 {[%clk 0:00:13]} 27. Bxc7 {[%clk 0:00:55]}  Rc6 {[%clk 0:00:13]} 28. Qh8+ {[%clk 0:00:55]}  Kxc7 {[%clk 0:00:14]} 29. Re1 {[%clk 0:00:48]}  Qd4 {[%clk 0:00:12]} 30. Qa8 {[%clk 0:00:42]}  b5 {[%clk 0:00:07]} 31. Re8 {[%clk 0:00:37]}  Rd8 {[%clk 0:00:05]} 32. Re7+ {[%clk 0:00:32]}  Rd7 {[%clk 0:00:06]} 33. Rbe1 {[%clk 0:00:32]}  Rxe7 {[%clk 0:00:05]} 34. Rxe7+ {[%clk 0:00:31]}  Kb6 {[%clk 0:00:06]} 35. Qa7+ {[%clk 0:00:28]}  Ka5 {[%clk 0:00:03]} 36. Qxd4 {[%clk 0:00:28]} 1-0

[Event "January 2 Early 2024"]
[Site "https://www.chess.com"]
[Date "2024.01.02"]
[Round "8"]
[White "Filippova, Margarita"]
[Black "Dyachuk, Artem"]
[Result "0-1"]
[Board "56"]
[TimeControl "180+1"]
[WhiteFideId "34199680"]
[BlackFideId "34107924"]
[WhiteElo "2347"]
[BlackElo "2718"]
[WhiteTeam "RUS"]
[BlackTeam "UKR"]
[WhiteClock "0:00:00"]
[BlackClock "0:01:36"]

1. e4 {[%clk 0:03:00]}  e5 {[%clk 0:02:58]} 2. Nf3 {[%clk 0:03:00]}  Nc6 {[%clk 0:02:58]} 3. Bc4 {[%clk 0:03:00]}  Nf6 {[%clk 0:02:50]} 4. O-O {[%clk 0:02:35]}  Nxe4 {[%clk 0:02:41]} 5. Nc3 {[%clk 0:02:34]}  Nf6 {[%clk 0:02:39]} 6. Re1 {[%clk 0:02:24]}  d5 {[%clk 0:02:36]} 7. Bb5 {[%clk 0:02:21]}  e4 {[%clk 0:02:36]} 8. d3 {[%clk 0:02:17]}  Bf5 {[%clk 0:02:34]} 9. Nd4 {[%clk 0:01:40]}  Bd7 {[%clk 0:02:33]} 10. dxe4 {[%clk 0:01:39]}  dxe4 {[%clk 0:02:33]} 11. Nxe4 {[%clk 0:01:17]}  Nxe4 {[%clk 0:02:32]} 12. Rxe4+ {[%clk 0:01:18]}  Be7 {[%clk 0:02:33]} 13. Nxc6 {[%clk 0:01:10]}  bxc6 {[%clk 0:02:33]} 14. Bd3 {[%clk 0:01:05]}  Be6 {[%clk 0:02:29]} 15. Qe2 {[%clk 0:00:55]}  Qd7 {[%clk 0:02:15]} 16. Bc4 {[%clk 0:00:40]}  Rd8 {[%clk 0:02:09]} 17. Bf4 {[%clk 0:00:36]}  Bxc4 {[%clk 0:01:57]} 18. Rxc4 {[%clk 0:00:32]}  O-O {[%clk 0:01:56]} 19. Re1 {[%clk 0:00:12]}  Bf6 {[%clk 0:01:55]} 20. c3 {[%clk 0:00:12]}  Qd5 {[%clk 0:01:54]} 21. h3 {[%clk 0:00:11]}  Rde8 {[%clk 0:01:50]} 22. Re4 {[%clk 0:00:09]}  Rxe4 {[%clk 0:01:49]} 23. Qxe4 {[%clk 0:00:10]}  Qxa2 {[%clk 0:01:49]} 24. Qxc6 {[%clk 0:00:08]}  Qxb2 {[%clk 0:01:47]} 25. Re3 {[%clk 0:00:08]}  Qb1+ {[%clk 0:01:42]} 26. Kh2 {[%clk 0:00:07]}  Qb6 {[%clk 0:01:43]} 27. Qxb6 {[%clk 0:00:07]}  cxb6 {[%clk 0:01:42]} 28. Rd3 {[%clk 0:00:07]}  h6 {[%clk 0:01:39]} 29. Rd7 {[%clk 0:00:07]}  Ra8 {[%clk 0:01:39]} 30. Rb7 {[%clk 0:00:06]}  a5 {[%clk 0:01:37]} 31. c4 {[%clk 0:00:00]}  a4 {[%clk 0:01:36]} 0-1

[Event "January 2 Early 2024"]
[Site "https://www.chess.com"]
[Date "2024.01.02"]
[Round "8"]
[White "Popov, Konstantin"]
[Black "Womacka, Mathias"]
[Result "1-0"]
[Board "57"]
[TimeControl "180+1"]
[WhiteFideId "34137910"]
[BlackFideId "4611390"]
[WhiteElo "2908"]
[BlackElo "2552"]
[WhiteTeam "FID"]
[BlackTeam "GER"]
[WhiteClock "0:01:06"]
[BlackClock "0:00:37"]

1. e4 {[%clk 0:03:00]}  c5 {[%clk 0:03:00]} 2. Nf3 {[%clk 0:03:01]}  d6 {[%clk 0:02:59]} 3. d4 {[%clk 0:03:01]}  cxd4 {[%clk 0:03:00]} 4. Nxd4 {[%clk 0:03:02]}  Nf6 {[%clk 0:02:59]} 5. Nc3 {[%clk 0:03:02]}  a6 {[%clk 0:03:00]} 6. Bg5 {[%clk 0:03:01]}  e6 {[%clk 0:03:00]} 7. f4 {[%clk 0:02:58]}  h6 {[%clk 0:03:00]} 8. Bh4 {[%clk 0:02:56]}  Qb6 {[%clk 0:02:59]} 9. Qd2 {[%clk 0:02:53]}  Qxb2 {[%clk 0:02:57]} 10. Rb1 {[%clk 0:02:51]}  Qa3 {[%clk 0:02:57]} 11. e5 {[%clk 0:02:51]}  dxe5 {[%clk 0:02:58]} 12. fxe5 {[%clk 0:02:51]}  g5 {[%clk 0:02:57]} 13. Bf2 {[%clk 0:02:37]}  Ng4 {[%clk 0:02:55]} 14. Bg3 {[%clk 0:02:22]}  Bg7 {[%clk 0:02:55]} 15. Be2 {[%clk 0:02:02]}  Nxe5 {[%clk 0:02:51]} 16. h4 {[%clk 0:02:00]}  Nbc6 {[%clk 0:02:30]} 17. Rb3 {[%clk 0:01:56]}  Qa5 {[%clk 0:02:21]} 18. Nxc6 {[%clk 0:01:54]}  Nxc6 {[%clk 0:02:16]} 19. Ne4 {[%clk 0:01:48]}  Qxd2+ {[%clk 0:02:14]} 20. Kxd2 {[%clk 0:01:49]}  b5 {[%clk 0:02:04]} 21. Nd6+ {[%clk 0:01:40]}  Ke7 {[%clk 0:02:03]} 22. Bf3 {[%clk 0:01:34]}  Bd7 {[%clk 0:01:59]} 23. Re3 {[%clk 0:01:29]}  Kf8 {[%clk 0:01:47]} 24. Rd3 {[%clk 0:01:28]}  Rd8 {[%clk 0:01:43]} 25. Nb7 {[%clk 0:01:27]}  Ke7 {[%clk 0:01:25]} 26. Bd6+ {[%clk 0:01:14]}  Kf6 {[%clk 0:01:20]} 27. Nxd8 {[%clk 0:01:10]}  Rxd8 {[%clk 0:01:19]} 28. Bc7 {[%clk 0:01:10]}  Rc8 {[%clk 0:01:10]} 29. Rxd7 {[%clk 0:01:09]}  Ne5 {[%clk 0:01:10]} 30. Bxe5+ {[%clk 0:01:08]}  Kxe5 {[%clk 0:01:10]} 31. Rxf7 {[%clk 0:01:08]}  Bf8 {[%clk 0:01:08]} 32. Re1+ {[%clk 0:01:07]}  Kd6 {[%clk 0:00:37]} 33. Bg4 {[%clk 0:01:06]} 1-0

[Event "January 2 Early 2024"]
[Site "https://www.chess.com"]
[Date "2024.01.02"]
[Round "8"]
[White "Mekhitarian, Krikor Sevag"]
[Black "Kochiev, Ivan"]
[Result "1-0"]
[Board "59"]
[TimeControl "180+1"]
[WhiteFideId "2107660"]
[BlackFideId "2917890"]
[WhiteElo "2835"]
[BlackElo "2540"]
[WhiteTeam "BRA"]
[BlackTeam "BUL"]
[WhiteClock "0:01:35"]
[BlackClock "0:00:32"]

1. Nf3 {[%clk 0:03:00]}  Nf6 {[%clk 0:02:59]} 2. c4 {[%clk 0:03:00]}  e6 {[%clk 0:02:59]} 3. Nc3 {[%clk 0:03:00]}  d5 {[%clk 0:02:59]} 4. cxd5 {[%clk 0:03:01]}  exd5 {[%clk 0:02:59]} 5. d4 {[%clk 0:03:02]}  c6 {[%clk 0:02:58]} 6. Bf4 {[%clk 0:03:02]}  Bd6 {[%clk 0:02:58]} 7. Bxd6 {[%clk 0:03:02]}  Qxd6 {[%clk 0:02:59]} 8. e3 {[%clk 0:03:03]}  Bf5 {[%clk 0:02:57]} 9. Nh4 {[%clk 0:03:03]}  Bg6 {[%clk 0:02:56]} 10. Qb3 {[%clk 0:03:02]}  b6 {[%clk 0:02:49]} 11. Rc1 {[%clk 0:03:00]}  Nbd7 {[%clk 0:02:49]} 12. Nxg6 {[%clk 0:02:55]}  hxg6 {[%clk 0:02:49]} 13. g3 {[%clk 0:02:56]}  Ng4 {[%clk 0:02:29]} 14. Be2 {[%clk 0:02:50]}  f5 {[%clk 0:02:05]} 15. Bxg4 {[%clk 0:02:41]}  fxg4 {[%clk 0:02:05]} 16. Ne2 {[%clk 0:02:42]}  Nf6 {[%clk 0:02:00]} 17. Qc2 {[%clk 0:02:40]}  Kd7 {[%clk 0:01:38]} 18. Qxg6 {[%clk 0:02:37]}  Raf8 {[%clk 0:01:35]} 19. Qxg7+ {[%clk 0:02:30]}  Kc8 {[%clk 0:01:35]} 20. Qxa7 {[%clk 0:02:22]}  Nd7 {[%clk 0:01:12]} 21. Nf4 {[%clk 0:02:17]}  Qb4+ {[%clk 0:01:11]} 22. Kf1 {[%clk 0:02:16]}  Rf6 {[%clk 0:01:09]} 23. Kg2 {[%clk 0:02:09]}  Qxb2 {[%clk 0:01:03]} 24. Qa8+ {[%clk 0:01:42]}  Nb8 {[%clk 0:01:01]} 25. Qa4 {[%clk 0:01:42]}  Kb7 {[%clk 0:00:38]} 26. Rc2 {[%clk 0:01:35]}  Qb5 {[%clk 0:00:32]} 27. Qxb5 {[%clk 0:01:35]}  cxb5 {[%clk 0:00:32]} 28. Nxd5 {[%clk 0:01:35]} 1-0

[Event "January 2 Early 2024"]
[Site "https://www.chess.com"]
[Date "2024.01.02"]
[Round "8"]
[White "ilqar_74"]
[Black "Pinero Rodriguez, Carlos Jose"]
[Result "1-0"]
[Board "61"]
[TimeControl "180+1"]
[BlackFideId "3901726"]
[WhiteElo "2776"]
[BlackElo "2527"]
[BlackTeam "VEN"]
[WhiteClock "0:01:13"]
[BlackClock "0:00:17"]

1. e4 {[%clk 0:03:00]}  c5 {[%clk 0:02:59]} 2. Nf3 {[%clk 0:03:00]}  e6 {[%clk 0:02:59]} 3. c3 {[%clk 0:03:00]}  Nf6 {[%clk 0:02:53]} 4. e5 {[%clk 0:03:00]}  Nd5 {[%clk 0:02:53]} 5. d4 {[%clk 0:03:01]}  cxd4 {[%clk 0:02:54]} 6. cxd4 {[%clk 0:03:02]}  d6 {[%clk 0:02:55]} 7. Bd3 {[%clk 0:03:02]}  Nc6 {[%clk 0:02:55]} 8. exd6 {[%clk 0:03:01]}  Bxd6 {[%clk 0:02:55]} 9. O-O {[%clk 0:03:01]}  Bd7 {[%clk 0:02:38]} 10. Nc3 {[%clk 0:03:02]}  Nxc3 {[%clk 0:02:28]} 11. bxc3 {[%clk 0:03:02]}  Ne7 {[%clk 0:02:21]} 12. Qe2 {[%clk 0:03:01]}  Qa5 {[%clk 0:02:10]} 13. c4 {[%clk 0:02:57]}  Qh5 {[%clk 0:02:06]} 14. Be4 {[%clk 0:02:54]}  Rb8 {[%clk 0:02:02]} 15. Bb2 {[%clk 0:02:52]}  O-O {[%clk 0:01:59]} 16. h3 {[%clk 0:02:51]}  Ng6 {[%clk 0:01:53]} 17. Bxg6 {[%clk 0:02:35]}  hxg6 {[%clk 0:01:50]} 18. Rfe1 {[%clk 0:02:33]}  Bc6 {[%clk 0:01:47]} 19. Ne5 {[%clk 0:02:30]}  Qxe2 {[%clk 0:01:36]} 20. Rxe2 {[%clk 0:02:31]}  Bxe5 {[%clk 0:01:37]} 21. Rxe5 {[%clk 0:02:32]}  Rfd8 {[%clk 0:01:37]} 22. a4 {[%clk 0:02:32]}  Rd7 {[%clk 0:01:33]} 23. Bc3 {[%clk 0:02:32]}  Rbd8 {[%clk 0:01:33]} 24. a5 {[%clk 0:02:30]}  a6 {[%clk 0:01:32]} 25. Rb1 {[%clk 0:02:29]}  Rxd4 {[%clk 0:01:25]} 26. Bxd4 {[%clk 0:02:29]}  Rxd4 {[%clk 0:01:26]} 27. Rc1 {[%clk 0:02:27]}  Kf8 {[%clk 0:01:24]} 28. f3 {[%clk 0:02:25]}  Rd2 {[%clk 0:01:23]} 29. h4 {[%clk 0:02:21]}  Ke7 {[%clk 0:01:21]} 30. Ree1 {[%clk 0:02:21]}  Ra2 {[%clk 0:01:19]} 31. Ra1 {[%clk 0:02:21]}  Rc2 {[%clk 0:01:19]} 32. Rec1 {[%clk 0:02:21]}  Rd2 {[%clk 0:01:20]} 33. Kh2 {[%clk 0:02:19]}  Kd6 {[%clk 0:01:17]} 34. Rd1 {[%clk 0:02:19]}  Rxd1 {[%clk 0:01:17]} 35. Rxd1+ {[%clk 0:02:20]}  Kc5 {[%clk 0:01:16]} 36. Rd8 {[%clk 0:02:16]}  Kb4 {[%clk 0:00:50]} 37. Rf8 {[%clk 0:02:17]}  Kxa5 {[%clk 0:00:50]} 38. Rxf7 {[%clk 0:02:17]}  Kb4 {[%clk 0:00:48]} 39. Rxg7 {[%clk 0:02:00]}  a5 {[%clk 0:00:48]} 40. Rxg6 {[%clk 0:02:01]}  a4 {[%clk 0:00:49]} 41. Rg8 {[%clk 0:02:00]}  a3 {[%clk 0:00:49]} 42. Ra8 {[%clk 0:01:58]}  Ba4 {[%clk 0:00:49]} 43. h5 {[%clk 0:01:20]}  a2 {[%clk 0:00:48]} 44. h6 {[%clk 0:01:16]}  a1=Q {[%clk 0:00:43]} 45. h7 {[%clk 0:01:16]}  Kxc4 {[%clk 0:00:19]} 46. h8=Q {[%clk 0:01:15]}  Qxh8+ {[%clk 0:00:19]} 47. Rxh8 {[%clk 0:01:15]}  b5 {[%clk 0:00:20]} 48. Rc8+ {[%clk 0:01:15]}  Kd5 {[%clk 0:00:20]} 49. g4 {[%clk 0:01:14]}  Bc2 {[%clk 0:00:17]} 50. Rxc2 {[%clk 0:01:13]} 1-0

[Event "January 2 Early 2024"]
[Site "https://www.chess.com"]
[Date "2024.01.02"]
[Round "8"]
[White "Haug, Havard"]
[Black "Jaiveer Mahendru"]
[Result "1-0"]
[Board "62"]
[TimeControl "180+1"]
[WhiteFideId "1547887"]
[BlackFideId "25611151"]
[WhiteElo "2774"]
[BlackElo "2527"]
[WhiteTeam "NOR"]
[BlackTeam "IND"]
[WhiteClock "0:01:47"]
[BlackClock "0:00:05"]

1. b3 {[%clk 0:03:00]}  b6 {[%clk 0:02:59]} 2. Bb2 {[%clk 0:02:59]}  Bb7 {[%clk 0:03:00]} 3. Nf3 {[%clk 0:02:59]}  Nf6 {[%clk 0:03:00]} 4. e3 {[%clk 0:02:58]}  e6 {[%clk 0:03:01]} 5. Be2 {[%clk 0:02:58]}  Be7 {[%clk 0:03:01]} 6. O-O {[%clk 0:02:59]}  O-O {[%clk 0:03:02]} 7. d4 {[%clk 0:03:00]}  d5 {[%clk 0:03:02]} 8. Nbd2 {[%clk 0:03:00]}  Nbd7 {[%clk 0:03:03]} 9. c4 {[%clk 0:03:00]}  c5 {[%clk 0:03:04]} 10. Rc1 {[%clk 0:03:01]}  Rc8 {[%clk 0:03:04]} 11. h3 {[%clk 0:03:01]}  h6 {[%clk 0:03:03]} 12. Re1 {[%clk 0:02:59]}  Qc7 {[%clk 0:03:03]} 13. Qc2 {[%clk 0:02:54]}  Qb8 {[%clk 0:02:56]} 14. dxc5 {[%clk 0:02:52]}  Nxc5 {[%clk 0:02:52]} 15. Qb1 {[%clk 0:02:49]}  Nce4 {[%clk 0:02:50]} 16. Nxe4 {[%clk 0:02:43]}  Nxe4 {[%clk 0:02:51]} 17. Bd3 {[%clk 0:02:43]}  Bf6 {[%clk 0:02:35]} 18. Bxe4 {[%clk 0:02:36]}  dxe4 {[%clk 0:02:36]} 19. Nd4 {[%clk 0:02:34]}  Rfd8 {[%clk 0:02:34]} 20. Rcd1 {[%clk 0:02:33]}  Qe5 {[%clk 0:02:24]} 21. Ba1 {[%clk 0:02:27]}  Qg5 {[%clk 0:02:14]} 22. Nb5 {[%clk 0:02:22]}  Bxa1 {[%clk 0:01:33]} 23. Qxa1 {[%clk 0:02:20]}  a6 {[%clk 0:01:24]} 24. Nd6 {[%clk 0:02:19]}  Rc7 {[%clk 0:01:23]} 25. Nxb7 {[%clk 0:02:16]}  Rxb7 {[%clk 0:01:24]} 26. Rxd8+ {[%clk 0:02:10]}  Qxd8 {[%clk 0:01:25]} 27. Qd4 {[%clk 0:02:02]}  Qxd4 {[%clk 0:00:50]} 28. exd4 {[%clk 0:02:03]}  f5 {[%clk 0:00:51]} 29. f3 {[%clk 0:02:02]}  exf3 {[%clk 0:00:51]} 30. Rxe6 {[%clk 0:02:02]}  fxg2 {[%clk 0:00:50]} 31. Kxg2 {[%clk 0:02:03]}  Kf7 {[%clk 0:00:50]} 32. d5 {[%clk 0:02:02]}  Re7 {[%clk 0:00:44]} 33. Rxb6 {[%clk 0:01:57]}  Re2+ {[%clk 0:00:44]} 34. Kf3 {[%clk 0:01:58]}  Rxa2 {[%clk 0:00:45]} 35. c5 {[%clk 0:01:58]}  g5 {[%clk 0:00:38]} 36. Rb7+ {[%clk 0:01:58]}  Ke8 {[%clk 0:00:36]} 37. Ke3 {[%clk 0:01:55]}  Kd8 {[%clk 0:00:25]} 38. Kd4 {[%clk 0:01:51]}  f4 {[%clk 0:00:25]} 39. Ke5 {[%clk 0:01:50]}  Re2+ {[%clk 0:00:20]} 40. Kd6 {[%clk 0:01:49]}  Kc8 {[%clk 0:00:20]} 41. Rf7 {[%clk 0:01:48]}  h5 {[%clk 0:00:16]} 42. c6 {[%clk 0:01:48]}  Re8 {[%clk 0:00:15]} 43. Kc5 {[%clk 0:01:47]}  Rg8 {[%clk 0:00:10]} 44. d6 {[%clk 0:01:47]}  h4 {[%clk 0:00:10]} 45. Ra7 {[%clk 0:01:46]}  Kb8 {[%clk 0:00:05]} 46. Kb6 {[%clk 0:01:47]} 1-0

[Event "January 2 Early 2024"]
[Site "https://www.chess.com"]
[Date "2024.01.02"]
[Round "8"]
[White "Korchmar, Vasiliy"]
[Black "Goncalves, Davi Sulzbacher"]
[Result "1-0"]
[Board "65"]
[TimeControl "180+1"]
[WhiteFideId "24131750"]
[BlackFideId "2154510"]
[WhiteElo "2752"]
[BlackElo "2518"]
[WhiteTeam "RUS"]
[BlackTeam "BRA"]
[WhiteClock "0:02:25"]
[BlackClock "0:00:08"]

1. e4 {[%clk 0:03:00]}  c5 {[%clk 0:02:58]} 2. d4 {[%clk 0:03:00]}  cxd4 {[%clk 0:02:58]} 3. Qxd4 {[%clk 0:03:01]}  Nc6 {[%clk 0:02:57]} 4. Qd3 {[%clk 0:03:02]}  g6 {[%clk 0:02:57]} 5. Nc3 {[%clk 0:03:02]}  Bg7 {[%clk 0:02:56]} 6. Nf3 {[%clk 0:03:03]}  d6 {[%clk 0:02:54]} 7. Be2 {[%clk 0:03:03]}  Nf6 {[%clk 0:02:55]} 8. Nd5 {[%clk 0:03:04]}  O-O {[%clk 0:02:54]} 9. O-O {[%clk 0:03:04]}  Nd7 {[%clk 0:02:31]} 10. c3 {[%clk 0:03:03]}  Nc5 {[%clk 0:02:30]} 11. Qc2 {[%clk 0:03:03]}  Bd7 {[%clk 0:02:22]} 12. Bg5 {[%clk 0:03:03]}  h6 {[%clk 0:02:13]} 13. Bh4 {[%clk 0:03:02]}  g5 {[%clk 0:02:11]} 14. Bg3 {[%clk 0:03:03]}  Rc8 {[%clk 0:02:11]} 15. Rad1 {[%clk 0:03:01]}  f5 {[%clk 0:02:00]} 16. exf5 {[%clk 0:03:01]}  Bxf5 {[%clk 0:02:01]} 17. Qc1 {[%clk 0:02:57]}  Qe8 {[%clk 0:01:58]} 18. Rfe1 {[%clk 0:02:54]}  Kh8 {[%clk 0:01:46]} 19. Bb5 {[%clk 0:02:53]}  Ne4 {[%clk 0:01:29]} 20. Nd4 {[%clk 0:02:44]}  Nxg3 {[%clk 0:00:59]} 21. hxg3 {[%clk 0:02:45]}  Bd7 {[%clk 0:00:59]} 22. Bxc6 {[%clk 0:02:40]}  bxc6 {[%clk 0:00:52]} 23. Nxe7 {[%clk 0:02:39]}  Qf7 {[%clk 0:00:50]} 24. Qc2 {[%clk 0:02:34]}  Rfe8 {[%clk 0:00:29]} 25. Nxc8 {[%clk 0:02:33]}  Rxc8 {[%clk 0:00:21]} 26. Re3 {[%clk 0:02:30]}  Qxa2 {[%clk 0:00:17]} 27. Re7 {[%clk 0:02:26]}  Bg4 {[%clk 0:00:16]} 28. Qg6 {[%clk 0:02:26]}  Rg8 {[%clk 0:00:16]} 29. Rde1 {[%clk 0:02:25]}  Qxb2 {[%clk 0:00:08]} 30. Rxg7 {[%clk 0:02:25]} 1-0

[Event "January 2 Early 2024"]
[Site "https://www.chess.com"]
[Date "2024.01.02"]
[Round "8"]
[White "Vaibhav Jayant Raut"]
[Black "Mekhane, Adam"]
[Result "1-0"]
[Board "66"]
[TimeControl "180+1"]
[WhiteFideId "5089034"]
[BlackFideId "36050601"]
[WhiteElo "2733"]
[BlackElo "2515"]
[WhiteTeam "IND"]
[BlackTeam "FRA"]
[WhiteClock "0:00:12"]
[BlackClock "0:00:00"]

1. c4 {[%clk 0:03:00]}  Nf6 {[%clk 0:02:54]} 2. g3 {[%clk 0:02:56]}  c5 {[%clk 0:02:49]} 3. Bg2 {[%clk 0:02:54]}  g6 {[%clk 0:02:48]} 4. Nc3 {[%clk 0:02:54]}  Bg7 {[%clk 0:02:48]} 5. d3 {[%clk 0:02:46]}  O-O {[%clk 0:02:45]} 6. Nf3 {[%clk 0:02:44]}  Nc6 {[%clk 0:02:39]} 7. O-O {[%clk 0:02:42]}  d6 {[%clk 0:02:39]} 8. a3 {[%clk 0:02:42]}  Bg4 {[%clk 0:02:24]} 9. Rb1 {[%clk 0:02:40]}  Qd7 {[%clk 0:02:16]} 10. Re1 {[%clk 0:02:38]}  Bxf3 {[%clk 0:02:01]} 11. Bxf3 {[%clk 0:02:37]}  a5 {[%clk 0:02:01]} 12. Nd5 {[%clk 0:02:30]}  Nxd5 {[%clk 0:02:00]} 13. cxd5 {[%clk 0:02:31]}  Nd4 {[%clk 0:01:52]} 14. Bg2 {[%clk 0:02:30]}  h5 {[%clk 0:01:52]} 15. e3 {[%clk 0:02:26]}  Nf5 {[%clk 0:01:51]} 16. h4 {[%clk 0:02:21]}  b5 {[%clk 0:01:43]} 17. Bh3 {[%clk 0:02:19]}  e6 {[%clk 0:01:40]} 18. Bd2 {[%clk 0:02:02]}  Qe7 {[%clk 0:01:30]} 19. dxe6 {[%clk 0:01:46]}  fxe6 {[%clk 0:01:30]} 20. Bc3 {[%clk 0:01:42]}  e5 {[%clk 0:01:12]} 21. Qb3+ {[%clk 0:01:35]}  Kh7 {[%clk 0:01:07]} 22. Qxb5 {[%clk 0:01:33]}  Nxh4 {[%clk 0:01:05]} 23. gxh4 {[%clk 0:01:30]}  Qxh4 {[%clk 0:01:04]} 24. Bg2 {[%clk 0:01:08]}  Qxf2+ {[%clk 0:01:02]} 25. Kh1 {[%clk 0:01:09]}  Rf5 {[%clk 0:00:23]} 26. Rf1 {[%clk 0:00:52]}  Qh4+ {[%clk 0:00:22]} 27. Kg1 {[%clk 0:00:52]}  Raf8 {[%clk 0:00:22]} 28. Rxf5 {[%clk 0:00:42]}  Rxf5 {[%clk 0:00:21]} 29. Rf1 {[%clk 0:00:43]}  Qg3 {[%clk 0:00:16]} 30. Rxf5 {[%clk 0:00:28]}  gxf5 {[%clk 0:00:16]} 31. Bd2 {[%clk 0:00:29]}  h4 {[%clk 0:00:16]} 32. Qd7 {[%clk 0:00:27]}  Kg6 {[%clk 0:00:14]} 33. Qe6+ {[%clk 0:00:22]}  Bf6 {[%clk 0:00:13]} 34. Qg8+ {[%clk 0:00:20]}  Bg7 {[%clk 0:00:13]} 35. Qe8+ {[%clk 0:00:20]}  Kf6 {[%clk 0:00:11]} 36. Qh5 {[%clk 0:00:19]}  f4 {[%clk 0:00:10]} 37. exf4 {[%clk 0:00:18]}  exf4 {[%clk 0:00:10]} 38. Bc3+ {[%clk 0:00:19]}  Ke7 {[%clk 0:00:09]} 39. Qe2+ {[%clk 0:00:17]}  Kd7 {[%clk 0:00:06]} 40. Bxg7 {[%clk 0:00:17]}  Qxg7 {[%clk 0:00:05]} 41. Qf3 {[%clk 0:00:14]}  Qd4+ {[%clk 0:00:03]} 42. Kh2 {[%clk 0:00:14]}  Qxb2 {[%clk 0:00:03]} 43. Qxf4 {[%clk 0:00:15]}  Qxa3 {[%clk 0:00:03]} 44. Qf7+ {[%clk 0:00:15]}  Kd8 {[%clk 0:00:03]} 45. Bc6 {[%clk 0:00:12]}  Qb2+ {[%clk 0:00:00]} 46. Kh3 {[%clk 0:00:12]} 1-0

[Event "January 2 Early 2024"]
[Site "https://www.chess.com"]
[Date "2024.01.02"]
[Round "8"]
[White "Weisz, Bryan"]
[Black "Rakitin, Daniil"]
[Result "1-0"]
[Board "67"]
[TimeControl "180+1"]
[WhiteFideId "30934133"]
[BlackFideId "24219762"]
[WhiteElo "2513"]
[BlackElo "2710"]
[WhiteTeam "USA"]
[BlackTeam "RUS"]
[WhiteClock "0:00:25"]
[BlackClock "0:00:00"]

1. e4 {[%clk 0:03:00]}  d6 {[%clk 0:03:00]} 2. d4 {[%clk 0:03:00]}  g6 {[%clk 0:03:01]} 3. Bc4 {[%clk 0:02:59]}  Bg7 {[%clk 0:03:01]} 4. Qf3 {[%clk 0:03:00]}  e6 {[%clk 0:02:37]} 5. Nc3 {[%clk 0:02:55]}  Bxd4 {[%clk 0:02:35]} 6. Nge2 {[%clk 0:02:55]}  Bg7 {[%clk 0:02:25]} 7. h4 {[%clk 0:02:50]}  h6 {[%clk 0:02:24]} 8. Qg3 {[%clk 0:02:43]}  Nc6 {[%clk 0:01:49]} 9. h5 {[%clk 0:02:39]}  Nge7 {[%clk 0:01:35]} 10. f4 {[%clk 0:02:22]}  d5 {[%clk 0:01:34]} 11. Bb3 {[%clk 0:01:53]}  a5 {[%clk 0:01:12]} 12. hxg6 {[%clk 0:01:51]}  fxg6 {[%clk 0:01:11]} 13. Be3 {[%clk 0:01:32]}  a4 {[%clk 0:00:48]} 14. Nxa4 {[%clk 0:01:25]}  Na5 {[%clk 0:00:33]} 15. Bd4 {[%clk 0:01:06]}  Bxd4 {[%clk 0:00:25]} 16. Nxd4 {[%clk 0:01:07]}  Nxb3 {[%clk 0:00:24]} 17. Qxb3 {[%clk 0:00:58]}  c5 {[%clk 0:00:10]} 18. Nxc5 {[%clk 0:00:54]}  Qa5+ {[%clk 0:00:10]} 19. Qc3 {[%clk 0:00:55]}  Qxc3+ {[%clk 0:00:10]} 20. bxc3 {[%clk 0:00:55]}  dxe4 {[%clk 0:00:11]} 21. Ndxe6 {[%clk 0:00:52]}  Bxe6 {[%clk 0:00:11]} 22. Nxe6 {[%clk 0:00:52]}  Kf7 {[%clk 0:00:12]} 23. Nc5 {[%clk 0:00:51]}  Rae8 {[%clk 0:00:06]} 24. Nxb7 {[%clk 0:00:50]}  Rb8 {[%clk 0:00:04]} 25. Nd6+ {[%clk 0:00:50]}  Ke6 {[%clk 0:00:04]} 26. Nxe4 {[%clk 0:00:50]}  Nf5 {[%clk 0:00:03]} 27. O-O {[%clk 0:00:47]}  h5 {[%clk 0:00:02]} 28. Rfe1 {[%clk 0:00:47]}  Rhc8 {[%clk 0:00:02]} 29. Ng5+ {[%clk 0:00:47]}  Kf6 {[%clk 0:00:03]} 30. Rad1 {[%clk 0:00:44]}  Rc7 {[%clk 0:00:03]} 31. Rd5 {[%clk 0:00:40]}  Rbc8 {[%clk 0:00:02]} 32. Ra5 {[%clk 0:00:38]}  Rc6 {[%clk 0:00:02]} 33. Ra7 {[%clk 0:00:37]}  R8c7 {[%clk 0:00:02]} 34. Ne4+ {[%clk 0:00:37]}  Kg7 {[%clk 0:00:01]} 35. Rxc7+ {[%clk 0:00:37]}  Rxc7 {[%clk 0:00:02]} 36. a4 {[%clk 0:00:36]}  Ra7 {[%clk 0:00:03]} 37. Ra1 {[%clk 0:00:36]}  Ra5 {[%clk 0:00:03]} 38. Nd2 {[%clk 0:00:35]}  Nd6 {[%clk 0:00:02]} 39. Nb3 {[%clk 0:00:35]}  Rf5 {[%clk 0:00:03]} 40. a5 {[%clk 0:00:35]}  Nb5 {[%clk 0:00:03]} 41. a6 {[%clk 0:00:35]}  Na7 {[%clk 0:00:04]} 42. g3 {[%clk 0:00:34]}  h4 {[%clk 0:00:04]} 43. Kg2 {[%clk 0:00:33]}  hxg3 {[%clk 0:00:04]} 44. Kxg3 {[%clk 0:00:34]}  g5 {[%clk 0:00:04]} 45. Ra4 {[%clk 0:00:31]}  gxf4+ {[%clk 0:00:04]} 46. Rxf4 {[%clk 0:00:32]}  Re5 {[%clk 0:00:02]} 47. Rb4 {[%clk 0:00:29]}  Re7 {[%clk 0:00:02]} 48. Rb7 {[%clk 0:00:29]}  Kf6 {[%clk 0:00:03]} 49. Nd4 {[%clk 0:00:27]}  Nc8 {[%clk 0:00:01]} 50. Nc6 {[%clk 0:00:25]}  Re3+ {[%clk 0:00:00]} 51. Kf4 {[%clk 0:00:25]} 1-0